Cogmind - Beta 13 @@@ ROGUE MODE // 2024.04.01 @ 15:01:10 Player: Yovador Result: Destroyed by D-53 Grenadier with Mini Grenade Launcher Performance ------------- Evolutions (0) 0 Regions Visited (2) 400 Robots Destroyed (16) 80 Value Destroyed (298) 298 Prototype IDs (2) 40 Alien Tech Used (0) 0 Bonus (0) 0 TOTAL SCORE: 818 Bonus ------- None Cogmind --------- Core Integrity 0/250 Matter 258/300 Energy 123/125 System Corruption 1% Temperature Cool (1) Movement Treading (160) Location -10/Mines Parts ------- > --- POWER (1) -------- Light Ion Engine (fused) > --- PROPULSION (2) --- Light Treads > --- UTILITY (2) ------ Medium Storage Unit ECM Suite > --- WEAPON (2) ------- (None) > --- INVENTORY (10) --- Ion Engine Compact Wheel Compact Wheel ECM Suite Mining Laser Peak State ------------ > --- POWER ------------ Light Ion Engine > --- PROPULSION ------- Light Treads Light Treads > --- UTILITY ---------- Medium Storage Unit ECM Suite > --- WEAPON ----------- EM Shotgun EM Shotgun > --- INVENTORY -------- Light Ion Engine Aluminum Leg Aluminum Leg Wheel Compact Wheel EM Pulse Gun Medium Laser Assault Rifle Grenade Launcher Mace [Rating: 10] Favorites ----------- Power Light Ion Engine Engine Light Ion Engine Propulsion Light Treads Treads Light Treads Leg Aluminum Leg Wheel Compact Wheel Flight Unit Flight Unit Utility Medium Storage Unit Device ECM Suite Storage Medium Storage Unit Weapon EM Shotgun Energy Gun EM Shotgun Ballistic Gun Assault Rifle Ballistic Cannon Light Cannon Launcher Grenade Launcher Special Weapon Mining Laser Build | -11 -10 -10 ------- Run | Yrd Mat Min Slots Evolved . | . . . Power . | . . . Propulsion . | . . . Utility . | . . . Weapon . | . . . Parts Attached 29 | 6 22 1 Power 4 | 1 3 . Engine 4 | 1 3 . Core . | . . . Reactor . | . . . Propulsion 13 | 2 11 . Treads 4 | 2 2 . Leg 2 | . 2 . Wheel 5 | . 5 . Hover . | . . . Flight 2 | . 2 . Utility 3 | 1 2 . Device 1 | . 1 . Storage 2 | 1 1 . Processor . | . . . Hackware . | . . . Protection . | . . . Artifact . | . . . Weapon 9 | 2 6 1 Energy Gun 5 | 1 4 . Energy Cannon . | . . . Ballistic Gun 1 | 1 . . Ballistic Cannon 1 | . 1 . Launcher 1 | . . 1 Special Weapon 1 | . 1 . Impact Weapon . | . . . Slashing Weapon . | . . . Piercing Weapon . | . . . Special Melee Weapon . | . . . Unidentified Prototypes . | . . . Parts Lost 8 | . 4 4 Power 1 | . 1 . Propulsion 2 | . 1 1 Utility . | . . . Weapon 5 | . 2 3 Highest Loss Streak 4 | . 4 4 To Critical Strikes . | . . . Average Slot Usage (%) 97 | . 97 98 Engine 13 | . 13 14 Treads 14 | . 13 28 Wheel 12 | . 13 . Device 12 | . 12 14 Storage 14 | . 14 14 Energy Gun 20 | . 21 10 Ballistic Gun 4 | . 5 . Ballistic Cannon 2 | . 1 14 Naked Turns . | . . . Heaviest Build 21 | 12 21 21 Greatest Support 40 | 40 40 40 Greatest Overweight (x) 2 | . 2 . Average Overweight (x) . | . . . Largest Inventory Capacity 10 | 8 10 10 Average Capacity 9 | 6 9 10 Most Carried 10 | 6 10 6 Average Carried 7 | 4 8 5 Final Capacity 10 | 8 10 10 Final Carried 6 | 6 6 5 Class Distribution -------------------- 100% | Mutant Dominant Class ---------------- Mutant | -10/Materials Mutant | -10/Mines Resources | -11 -10 -10 ----------- Run | Yrd Mat Min Matter Collected 515 | 254 261 . Remotely . | . . . Salvage Created 471 | . 400 71 Parts 28 | . 28 . Haulers Intercepted . | . . . Recyclers Shooed . | . . . Parts Field Recycled . | . . . Retrieved Matter . | . . . Parts Self-Destructed . | . . . Prevented . | . . . Kills | -11 -10 -10 ------- Run | Yrd Mat Min Combat Hostiles Destroyed 25 | . 13 12 Guns 9 | . 9 . Cannons 4 | . 2 2 AOE 12 | . 2 10 Classes Destroyed 5 | . 4 1 Operator 1 | . 1 . Watcher 2 | . 2 . Swarmer 8 | . 8 . Grunt 5 | . 5 . Assembled 12 | . . 12 Best Kill Streak 12 | . 3 12 Combat Bots Only 12 | . 3 12 Max Kills in Single Turn 8 | . 2 8 Gunslinging 1 | . 1 . Exploded 8 | . 2 8 Melee . | . . . Uniques/NPCs Destroyed . | . . . Combat | -11 -10 -10 -------- Run | Yrd Mat Min Hostile Shots Fired 100 | . 72 28 Missed 30 | . 19 11 Damage Taken 1044 | . 480 564 Core 276 | . 112 164 Absorbed by Shields . | . . . Core Remaining (%) 100 | 100 . . Volleys Fired 38 | . 30 8 Largest 2 | . 2 2 Hottest 100 | . 100 75 Shots Fired 65 | . 51 14 Gun 48 | . 44 4 Cannon 11 | . 3 8 Launcher 2 | . . 2 Special 4 | . 4 . Kinetic 22 | . 14 8 Thermal 4 | . 4 . Explosive 2 | . . 2 Electromagnetic 37 | . 33 4 Robot Hit Streak 6 | . 6 5 Robot Miss Streak 3 | . 3 2 Penetration Max . | . . . Secondary Targets 2 | . 2 . Max Gunslinging Chain 1 | . 1 . Shots Hit Robots 36 | . 29 7 Core Hits 45 | . 22 23 Critical Kills . | . . . Critical Parts Destroyed . | . . . Critical Strikes 2 | . 1 1 Blast 2 | . 1 1 Melee Attacks . | . . . Impact . | . . . Slashing . | . . . Piercing . | . . . Sneak Attacks . | . . . Combat Hostiles . | . . . Follow-up Attacks . | . . . Damage Inflicted 1011 | . 490 521 Guns 373 | . 351 22 Cannons 122 | . 53 69 Explosions 516 | . 86 430 Melee . | . . . Ramming . | . . . Kinetic 188 | . 119 69 Thermal 86 | . 86 . Explosive 430 | . . 430 Electromagnetic 307 | . 285 22 Impact . | . . . Slashing . | . . . Piercing . | . . . Highest Corruption 1 | . 1 1 Average Corruption 1 | . 1 1 Corruption Purged . | . . . Corruption Blocked . | . . . Effects 2 | . 1 1 Message Errors 1 | . 1 . Parts Fused 1 | . . 1 Overload Shots . | . . . Overflow Damage 18 | . 18 . Projectiles . | . . . Explosions 18 | . 18 . Melee . | . . . Knockbacks 3 | . . 3 Impact . | . . . Kinetic 2 | . . 2 Secondary 1 | . . 1 Self-Inflicted Damage 86 | . 24 62 Shots 3 | . 1 2 Rammed . | . . . Targets Rammed . | . . . Kicked . | . . . Crushed . | . . . Highest Temperature 80 | . 80 45 Average Temperature 31 | . 33 27 Received Heat Transfer 132 | . 72 60 Siege Activations . | . . . Robots Corrupted . | . . . Combat Hostiles . | . . . Parts Fried 1 | . 1 . Impact Corruptions . | . . . Robots Melted . | . . . Combat Hostiles . | . . . Parts Melted . | . . . Heat Transferred 50 | . 50 . Parts Sabotaged . | . . . Parts Stolen . | . . . Parts Stripped . | . . . Power Chain Reactions 1 | . 1 . Alert | -11 -10 -10 ------- Run | Yrd Mat Min Peak Influence 223 | . 223 47 Initial 43 | . . 43 Average 63 | . 71 41 Maximum Alert Level 1 | . 1 . Low Security (%) 99 | 100 99 100 Level 1 . | . . . Level 2 . | . . . Level 3 . | . . . Level 4 . | . . . Level 5 . | . . . High Security . | . . . Max Security . | . . . Squads Dispatched 2 | . 2 . Investigation 2 | . 2 . Extermination . | . . . Reinforcement . | . . . Assault . | . . . Garrison . | . . . Intercept . | . . . Searches Triggered . | . . . Construction Impeded . | . . . Haulers Reinforced . | . . . Active Scanning Responses . | . . . Cargo Convoy Interrupts . | . . . Stealth | -11 -10 -10 --------- Run | Yrd Mat Min Distress Signals . | . . . Communications Jammed . | . . . Distress Signals . | . . . Times Spotted 44 | . 22 22 Peak Tracking Total 15 | . 3 15 Tactical Retreats 3 | . 3 . Traps | -11 -10 -10 ------- Run | Yrd Mat Min Traps Triggered 3 | . 3 . Indirectly . | . . . Trap Hack Attempts . | . . . Triggered . | . . . Disarmed . | . . . Reprogrammed . | . . . Reused . | . . . Traps Extracted . | . . . Installed . | . . . Triggered . | . . . Machines | -11 -10 -10 ---------- Run | Yrd Mat Min Machines Disabled . | . . . Max in Single Turn . | . . . Machines Repaired . | . . . Machines Dismantled . | . . . Machines Sabotaged . | . . . Overloaded Fab Kills . | . . . Hacking | -11 -10 -10 --------- Run | Yrd Mat Min Machines Accessed 6 | . 6 . Terminals 5 | . 5 . Fabricators . | . . . Repair Stations . | . . . Recycling Units 1 | . 1 . Scanalyzers . | . . . Garrison Access . | . . . Total Hacks 18 | . 18 . Successful 8 | . 8 . Failed 10 | . 10 . Catastrophic . | . . . Database Lockouts . | . . . Manual . | . . . Terminals 15 | . 15 . Fabricators . | . . . Repair Stations . | . . . Recycling Units 3 | . 3 . Scanalyzers . | . . . Garrison Access . | . . . Terminal Hacks 6 | . 6 . Prototype ID Bank 1 | . 1 . Level Access Points 1 | . 1 . Alert Level 2 | . 2 . Zone Layout 2 | . 2 . Fabricator Hacks . | . . . Repair Station Hacks . | . . . Recycling Unit Hacks 2 | . 2 . Report Inventory 1 | . 1 . Retrieve Components 1 | . 1 . Scanalyzer . | . . . Garrison Access Hacks . | . . . Unauthorized Hacks . | . . . Terminals . | . . . Fabricators . | . . . Repair Stations . | . . . Recycling Units . | . . . Scanalyzers . | . . . Garrison Access . | . . . Data Cores Recovered 1 | . 1 . Used . | . . . Hacking Detections 3 | . 3 . Full Trace Events 1 | . 1 . Feedback Events . | . . . Feedback Blocked . | . . . Robot Schematics Acquired . | . . . Robots Built . | . . . Authchips . | . . . Time . | . . . Total Robot Build Rating . | . . . Part Schematics Acquired . | . . . Parts Built . | . . . Authchips . | . . . Time . | . . . Total Part Build Rating . | . . . Parts Repaired . | . . . Time . | . . . Parts Recycled . | . . . Recycled Matter . | . . . Retrieved Matter . | . . . Retrieved Components 1 | . 1 . Parts Scanalyzed . | . . . Part Schematics Acquired . | . . . Parts Damaged . | . . . Bothacking | -11 -10 -10 ------------ Run | Yrd Mat Min Used RIF Installer . | . . . Robots Hacked . | . . . Non-combat . | . . . Combat . | . . . Robot Hacks Applied . | . . . Relay Couplers Released . | . . . Fabnet Peak Effective % . | . . . Robots Rewired . | . . . Allies Hacked . | . . . Hacks Repelled . | . . . Allies | -11 -10 -10 -------- Run | Yrd Mat Min Total Allies . | . . . Largest Group . | . . . Highest-Rated Group . | . . . Highest-Rated Ally . | . . . Total Orders . | . . . Ally Attacks . | . . . Total Damage . | . . . Kills . | . . . Allies Corrupted . | . . . Allies Melted . | . . . Intel | -11 -10 -10 ------- Run | Yrd Mat Min Robot Analysis Total . | . . . Derelict Logs Recovered . | . . . Drone Launches . | . . . Drone Recoveries . | . . . Exploration | -11 -10 -10 ------------- Run | Yrd Mat Min Turns Passed 1283 | 116 1081 86 Spaces Moved 799 | 64 695 40 Core 7 | 7 . . Treads 382 | 57 285 40 Legs . | . . . Wheels 403 | . 403 . Hover . | . . . Flight 7 | . 7 . Fastest Speed 50 | 50 90 160 Average Speed 124 | 147 119 160 Slowest Speed 197 | 160 197 160 Overloaded Moves . | . . . Propulsion Burnouts . | . . . Robots Hopped . | . . . Cave-ins Triggered . | . . . Exploration Rate (%) 38 | 4 94 17 Regions Visited 2 Branch Regions 1 Pre-discovered Areas . | . . . Known Exits Taken . | . . . Unknown Exits Taken 2 | 1 1 . Scrap Searched . | . . . Spaces Dug 4 | . 4 . Terrain Destroyed 26 | . 8 18 Melee . | . . . Projectile 4 | . 4 . AOE 22 | . 4 18 Terrain Rammed . | . . . Walls Destroyed . | . . . Machines Disabled . | . . . Actions | -11 -10 -10 --------- Run | Yrd Mat Min Total 1018 | 85 884 49 Wait 115 | 4 111 . Move 797 | 63 694 40 Hop . | . . . Pick Up 27 | 12 15 . Fast Attach . | . . . Attach 17 | 6 10 1 Detach 2 | . 2 . Swap 12 | . 12 . Drop 10 | . 10 . Fire 38 | . 30 8 Melee . | . . . Ram . | . . . Kick . | . . . Crush . | . . . Escape Stasis . | . . . Rewire . | . . . Trap . | . . . Miscellaneous . | . . . Route ------- -11/Scrapyard -10/Materials (discovered 4 exits: *Mat x3 / [*Min]) -10/Mines History --------- Turn | Location | Event 17 | -11/Scrapyard | Discovered new exit (range 15) 117 | -11/Scrapyard | Entered Materials 279 | -10/Materials | Discovered new exit (range 16) 318 | -10/Materials | Build established: Mutant 479 | -10/Materials | Discovered new exit (range 16) 634 | -10/Materials | Discovered new exit (range 15) 700 | -10/Materials | Derelicts attacked the area 859 | -10/Materials | Discovered new exit (range 14) 1055 | -10/Materials | Identified exit to Materials 1123 | -10/Materials | Lost 4 parts (1p1n2w) 1198 | -10/Materials | Entered Mines 1239 | -10/Mines | Assembled infested the area 1265 | -10/Mines | Core integrity fell below 50% 1276 | -10/Mines | Core integrity fell below 20% 1284 | -10/Mines | Destroyed by D-53 Grenadier with Mini Grenade Launcher Last Messages --------------- as-66847 destroyed. as-38511 destroyed. [Achievement: Quick And Dirty] as-72344 destroyed. as-59971 destroyed. as-90841 destroyed. C-30 ARC bursts open, deploying its payload. D-53 Grenadier unfolds itself. as-00133 destroyed. as-43965 destroyed. as-65052 destroyed. as-48989 destroyed. as-59443 destroyed. as-44645 destroyed. Grenade Launcher destroyed. The unstable cave ceiling collapses. as-62185 destroyed. D-53 Grenadier knocked back. Lgt. Treads destroyed. Lgt. Cannon destroyed. Map ----- +----------------------------------------------------+ | ????????????? ##????????????????????????????? | | ????????????? ######???????????????????????? | | ????????????? ###?????????????????????? | | ????????????## #?????????????????????? | | ???????????## ????????????????????????? | | ????????#### #?????????????????????????????? | | ???????## ##?????????????????????????????? | | ??????## #??????????????????????????????? | | ?????## #??????????????????????????????? | | ???### #??????????????????????????????? | | ??## """ ##?????????????????????????????? | | ??# """ ##????????????????????????????? | | ??# """ ##???????????????????????????? | | ??# ########????????????????????? | | ??# #### #????????????????????? | | ??## ##??### ##### #?????"??????????????? | | ???###??????## ##### ### """ ???????????? | | ?????????????## """ ???????????? | | ??????????????## #####%### #???????????? | | ???????????????######## d ## #???????????? | | ??????????????????## d # ??????????????? | | ??????????????????# #????????????????? | | ?????????????????## ##???????????????? | | ?????????????????# #???????????????? | | ??????????????????# #???????????????? | | ??????????????????# @ a ????????? | | ??????????????????# ????????? | | ??????????????????# # #????????? | | ??????????????????## ## ### ## ?????????? | | ???????????????????##? ##??####?? ?????????? | | ?????????????????????? #?????????? ???????????? | | ?????????????????????? ??????????????????????? | | ??????????????????????# ??????????????????????? | | ??????????????????????# ??????????????????????? | | ??????????????????????? ??????????????????????? | | ??????????????????????? ?????????????????????? | | ???????????????????????# ?????????????????????? | | ????????????????????????# ?????????????????????? | | ?????????????????????????#?????????????????????? | | ???????????????????????????????????????????????? | | ???????????????????????????????????????????????? | | | | | | | | | | | | | | | | | | | +----------------------------------------------------+ Best States ------------- Heat Dissipation 25 Energy Generation 10 Energy Capacity 250 Matter Stores 300 Matter Capacity 300 Sight Range 16 Terrain Scan Density 10 ECM Strength 1 Evasion (%) 42 Recoil Reduction 2 Item Schematics ----------------- None Robot Schematics ------------------ None Fabricated ------------ Nothing Alien Tech Used ----------------- None Achievements -------------- Quick And Dirty Challenges ------------ None Game ------ Seed ScrapMediumTerrabomb Manual? 0 Play Time 00:14:27 Cumulative 5.9 hours Start 2024.04.01 @ 14:47:05 End 2024.04.01 @ 15:01:10 Sessions 1 Manual Loads 0 Difficulty Rogue Special Mode None Game No. 14 Rogue 14 Adventurer 0 Explorer 0 Win Type - Total 0 Types 0/0/0/0/0/0/0/0/0 Lore% 5 Gallery% 9 Achievement% 11 Wizard Run 0 Options --------- Layout 1 ASCII 0 Keyboard 0 Movement Mouse Keybinds 0 Fullscreen 1 Font 24/Smallcaps Map View 50x35 Zoom Use 0% Tactical HUD 0 Map Filters NONE Filters NONE Steam 1 RUN: e1203454-af4e-4b8e-a49f-086a8062fe29